[Event "*** Titled Tuesday Blitz"]
[Site "Chess.com"]
[Date "2019.04.02"]
[Round "7"]
[White "HrvojeZagreb"]
[Black "Jospem"]
[Result "0-1"]
[WhiteElo "2046"]
[BlackElo "2764"]
[TimeControl "180+2"]
[EndTime "15:35:41 PDT"]
[Termination "Jospem won by resignation"]

1. d4 {[%clk 0:03:01.9]} 1... c5 {[%clk 0:03:01.9]} 2. c3 {[%clk 0:03:00.2]}
2... Nf6 {[%clk 0:03:03.3]} 3. Bf4 {[%clk 0:03:00.8]} 3... e6 {[%clk 0:03:03.1]}
4. e3 {[%clk 0:02:58.2]} 4... Nc6 {[%clk 0:03:04]} 5. h3 {[%clk 0:02:52.5]} 5...
Qb6 {[%clk 0:03:04.6]} 6. Qb3 {[%clk 0:02:52.1]} 6... d5 {[%clk 0:03:05.2]} 7.
Nd2 {[%clk 0:02:48.5]} 7... c4 {[%clk 0:03:06.2]} 8. Qxb6 {[%clk 0:02:47.9]}
8... axb6 {[%clk 0:03:08.1]} 9. a3 {[%clk 0:02:47.6]} 9... b5 {[%clk 0:03:09.4]}
10. Rc1 {[%clk 0:02:47.7]} 10... Nd7 {[%clk 0:03:10.8]} 11. e4 {[%clk
0:02:46.9]} 11... Nb6 {[%clk 0:03:12.4]} 12. Ngf3 {[%clk 0:02:32.7]} 12... f6
{[%clk 0:03:12.9]} 13. g4 {[%clk 0:02:29.1]} 13... Na4 {[%clk 0:03:13.2]} 14.
Rc2 {[%clk 0:02:29.7]} 14... Bd7 {[%clk 0:03:14.4]} 15. Bg2 {[%clk 0:02:28.6]}
15... Ne7 {[%clk 0:02:50.2]} 16. O-O {[%clk 0:02:25.1]} 16... Kf7 {[%clk
0:02:48.7]} 17. Bd6 {[%clk 0:01:52.6]} 17... Bc6 {[%clk 0:02:45.2]} 18. Re1
{[%clk 0:01:43.6]} 18... Ng6 {[%clk 0:02:34.2]} 19. Bg3 {[%clk 0:01:43.2]} 19...
Be7 {[%clk 0:02:31.3]} 20. h4 {[%clk 0:01:40.7]} 20... Rhe8 {[%clk 0:02:26.4]}
21. h5 {[%clk 0:01:39.5]} 21... Nf8 {[%clk 0:02:27.7]} 22. Nh4 {[%clk 0:01:29]}
22... g5 {[%clk 0:02:15.5]} 23. hxg6+ {[%clk 0:01:27.7]} 23... hxg6 {[%clk
0:02:16.3]} 24. exd5 {[%clk 0:01:26.4]} 24... exd5 {[%clk 0:02:10.9]} 25. Nf1
{[%clk 0:01:25.8]} 25... Nb6 {[%clk 0:01:44.7]} 26. Rce2 {[%clk 0:01:20.6]}
26... Rac8 {[%clk 0:01:34.3]} 27. Ne3 {[%clk 0:01:12.1]} 27... Nfd7 {[%clk
0:01:26.7]} 28. f4 {[%clk 0:00:41]} 28... Bf8 {[%clk 0:01:05]} 29. f5 {[%clk
0:00:38.8]} 29... g5 {[%clk 0:01:05.6]} 30. Ng6 {[%clk 0:00:39.7]} 30... Bg7
{[%clk 0:01:05.2]} 31. Nc2 {[%clk 0:00:31.7]} 31... Rxe2 {[%clk 0:01:01.9]} 32.
Rxe2 {[%clk 0:00:33.6]} 32... Re8 {[%clk 0:01:03.3]} 33. Rxe8 {[%clk 0:00:32.6]}
33... Kxe8 {[%clk 0:01:05.2]} 34. Nb4 {[%clk 0:00:29.8]} 34... Bf8 {[%clk
0:00:58.5]} 35. Nxf8 {[%clk 0:00:27.3]} 35... Kxf8 {[%clk 0:01:00.1]} 36. Bd6+
{[%clk 0:00:17.6]} 36... Kf7 {[%clk 0:00:43.7]} 37. Kf2 {[%clk 0:00:18.6]} 37...
Na4 {[%clk 0:00:37.3]} 38. Bxd5+ {[%clk 0:00:15.1]} 38... Bxd5 {[%clk
0:00:38.7]} 39. Nxd5 {[%clk 0:00:16.9]} 39... Nxb2 {[%clk 0:00:40]} 40. Nc7
{[%clk 0:00:17.6]} 40... Nd1+ {[%clk 0:00:40.1]} 41. Ke1 {[%clk 0:00:17.5]}
41... Nxc3 {[%clk 0:00:42]} 42. Bb4 {[%clk 0:00:18.2]} 42... Ne4 {[%clk
0:00:35.3]} 43. Nxb5 {[%clk 0:00:19.3]} 43... Nb6 {[%clk 0:00:36.2]} 44. Ke2
{[%clk 0:00:18.1]} 44... Nd5 {[%clk 0:00:21.7]} 45. Kf3 {[%clk 0:00:17.8]} 45...
Nxb4 {[%clk 0:00:22.4]} 46. Kxe4 {[%clk 0:00:16.9]} 46... Nc2 {[%clk 0:00:21.7]}
47. Nd6+ {[%clk 0:00:17.7]} 47... Ke7 {[%clk 0:00:22.5]} 48. Nxb7 {[%clk
0:00:19.6]} 48... Nxa3 {[%clk 0:00:23.8]} 49. d5 {[%clk 0:00:19.8]} 49... c3
{[%clk 0:00:21.5]} 50. Kd3 {[%clk 0:00:20.8]} 50... c2 {[%clk 0:00:21.9]} 51.
Kd2 {[%clk 0:00:22.1]} 51... Kd7 {[%clk 0:00:22.4]} 52. Nc5+ {[%clk 0:00:19.3]}
52... Kd6 {[%clk 0:00:23.4]} 53. Ne4+ {[%clk 0:00:21.2]} 53... Ke5 {[%clk
0:00:21]} 54. d6 {[%clk 0:00:22]} 54... Nc4+ {[%clk 0:00:22]} 55. Kxc2 {[%clk
0:00:22.4]} 55... Nxd6 {[%clk 0:00:21.6]} 56. Nxd6 {[%clk 0:00:20.4]} 56... Kxd6
{[%clk 0:00:23.5]} 57. Kd3 {[%clk 0:00:21]} 57... Kd5 {[%clk 0:00:24.2]} 58. Ke3
{[%clk 0:00:19.8]} 58... Ke5 {[%clk 0:00:24.3]} 59. Kf3 {[%clk 0:00:19]} 59...
Kd4 {[%clk 0:00:21.7]} 60. Kf2 {[%clk 0:00:14.4]} 60... Ke4 {[%clk 0:00:23.6]}
61. Kg3 {[%clk 0:00:14.1]} 61... Ke3 {[%clk 0:00:24.5]} 62. Kg2 {[%clk 0:00:12]}
62... Kf4 {[%clk 0:00:26.4]} 63. Kh3 {[%clk 0:00:11.5]} 63... Kf3 {[%clk
0:00:27.7]} 64. Kh2 {[%clk 0:00:12.8]} 64... Kxg4 {[%clk 0:00:29.6]} 0-1

[Event "*** Titled Tuesday Blitz"]
[Site "Chess.com"]
[Date "2019.04.02"]
[Round "7"]
[White "Chessmatus"]
[Black "Panchenko_Dmitry"]
[Result "0-1"]
[WhiteElo "2314"]
[BlackElo "2534"]
[TimeControl "180+2"]
[EndTime "15:35:59 PDT"]
[Termination "Panchenko_Dmitry won by resignation"]

1. d4 {[%clk 0:03:01.9]} 1... d5 {[%clk 0:03:00.8]} 2. Nf3 {[%clk 0:03:01.5]}
2... Nf6 {[%clk 0:03:01.1]} 3. c4 {[%clk 0:03:02.9]} 3... c6 {[%clk 0:03:01.9]}
4. Nc3 {[%clk 0:03:01.7]} 4... a6 {[%clk 0:03:03]} 5. Qc2 {[%clk 0:03:00.9]}
5... b5 {[%clk 0:03:02.5]} 6. b3 {[%clk 0:03:01.1]} 6... g6 {[%clk 0:03:01.1]}
7. g3 {[%clk 0:03:02.1]} 7... Bf5 {[%clk 0:03:01.4]} 8. Qd1 {[%clk 0:02:55.3]}
8... Ne4 {[%clk 0:02:58.4]} 9. Bb2 {[%clk 0:02:51]} 9... Qa5 {[%clk 0:02:52.4]}
10. Qc1 {[%clk 0:02:43.8]} 10... Bg7 {[%clk 0:02:51.8]} 11. Bg2 {[%clk 0:02:37]}
11... O-O {[%clk 0:02:38.9]} 12. O-O {[%clk 0:02:37.6]} 12... Nxc3 {[%clk
0:02:31.6]} 13. Bxc3 {[%clk 0:02:37.6]} 13... b4 {[%clk 0:02:25.5]} 14. Bb2
{[%clk 0:02:34.9]} 14... Be4 {[%clk 0:02:21.7]} 15. Qd2 {[%clk 0:02:22.6]} 15...
Nd7 {[%clk 0:02:18.7]} 16. Bh3 {[%clk 0:02:11.8]} 16... Bf5 {[%clk 0:02:05.1]}
17. g4 {[%clk 0:02:06]} 17... Be4 {[%clk 0:01:49.8]} 18. Ng5 {[%clk 0:02:06]}
18... Nf6 {[%clk 0:01:41.4]} 19. Nxe4 {[%clk 0:01:37.3]} 19... Nxe4 {[%clk
0:01:41.7]} 20. Qe3 {[%clk 0:01:33.5]} 20... e6 {[%clk 0:01:35.1]} 21. f3 {[%clk
0:01:29.1]} 21... Nd6 {[%clk 0:01:32.5]} 22. Qd3 {[%clk 0:01:27.4]} 22... dxc4
{[%clk 0:01:11.9]} 23. bxc4 {[%clk 0:01:26.6]} 23... c5 {[%clk 0:01:13.3]} 24.
e3 {[%clk 0:01:00.3]} 24... Rac8 {[%clk 0:01:13.5]} 25. Rfc1 {[%clk 0:00:50.1]}
25... Rfd8 {[%clk 0:01:13.2]} 26. a3 {[%clk 0:00:45.5]} 26... b3 {[%clk
0:00:48.9]} 27. Qxb3 {[%clk 0:00:21]} 27... Rb8 {[%clk 0:00:49.3]} 28. Qc2
{[%clk 0:00:20.8]} 28... Nxc4 {[%clk 0:00:47.4]} 29. Qxc4 {[%clk 0:00:19.9]}
29... Rxb2 {[%clk 0:00:48.2]} 30. Qc3 {[%clk 0:00:13.8]} 30... Qxc3 {[%clk
0:00:44.5]} 31. Rxc3 {[%clk 0:00:14.8]} 31... cxd4 {[%clk 0:00:45.8]} 32. Rd3
{[%clk 0:00:16]} 32... e5 {[%clk 0:00:44]} 33. Rad1 {[%clk 0:00:16.9]} 33... Rc8
{[%clk 0:00:41.1]} 34. exd4 {[%clk 0:00:17.1]} 34... exd4 {[%clk 0:00:41.6]} 35.
f4 {[%clk 0:00:15.6]} 35... Rcc2 {[%clk 0:00:35.8]} 36. Re1 {[%clk 0:00:15]}
36... Kf8 {[%clk 0:00:34]} 37. f5 {[%clk 0:00:10.6]} 37... Rxh2 {[%clk
0:00:32.6]} 38. Bf1 {[%clk 0:00:11.9]} 38... gxf5 {[%clk 0:00:28.9]} 39. gxf5
{[%clk 0:00:12.4]} 39... Rhf2 {[%clk 0:00:23.3]} 40. Rg3 {[%clk 0:00:11.3]}
40... Rxf5 {[%clk 0:00:20.7]} 41. Bxa6 {[%clk 0:00:12.5]} 41... h5 {[%clk
0:00:13]} 42. a4 {[%clk 0:00:11.9]} 42... h4 {[%clk 0:00:12]} 43. Rh3 {[%clk
0:00:11.5]} 43... Bf6 {[%clk 0:00:12.6]} 44. Bb5 {[%clk 0:00:11.6]} 44... Rg5+
{[%clk 0:00:13.2]} 45. Kh1 {[%clk 0:00:11.8]} 45... Rg3 {[%clk 0:00:12.9]} 46.
Rh2 {[%clk 0:00:10.1]} 46... Rxh2+ {[%clk 0:00:09.8]} 47. Kxh2 {[%clk
0:00:11.2]} 47... Ra3 {[%clk 0:00:10.4]} 48. Re4 {[%clk 0:00:10.9]} 48... Kg7
{[%clk 0:00:08.8]} 49. Kg2 {[%clk 0:00:11]} 49... Kg6 {[%clk 0:00:09.8]} 50. Re2
{[%clk 0:00:09.9]} 50... Kf5 {[%clk 0:00:08]} 51. Bd7+ {[%clk 0:00:08.3]} 51...
Kg5 {[%clk 0:00:08.2]} 52. Bb5 {[%clk 0:00:09.3]} 52... Kf4 {[%clk 0:00:05.3]}
53. Rf2+ {[%clk 0:00:09.9]} 53... Ke5 {[%clk 0:00:06.3]} 54. Re2+ {[%clk
0:00:10.8]} 54... Kd5 {[%clk 0:00:07.4]} 55. Rf2 {[%clk 0:00:10.3]} 55... h3+
{[%clk 0:00:08.4]} 56. Kh1 {[%clk 0:00:10.1]} 56... Ke5 {[%clk 0:00:04.5]} 57.
Re2+ {[%clk 0:00:10.9]} 57... Kd5 {[%clk 0:00:05.5]} 58. Rf2 {[%clk 0:00:11.6]}
58... Ke6 {[%clk 0:00:06.6]} 59. Re2+ {[%clk 0:00:12.3]} 59... Be5 {[%clk
0:00:07.8]} 60. Bc4+ {[%clk 0:00:13]} 60... Kd6 {[%clk 0:00:08.7]} 61. Bb5
{[%clk 0:00:06.3]} 61... Ra1+ {[%clk 0:00:08.6]} 0-1

[Event "*** Titled Tuesday Blitz"]
[Site "Chess.com"]
[Date "2019.04.02"]
[Round "7"]
[White "RegZryt"]
[Black "Gareth-Bale11"]
[Result "0-1"]
[WhiteElo "2578"]
[BlackElo "2705"]
[TimeControl "180+2"]
[EndTime "15:36:02 PDT"]
[Termination "Gareth-Bale11 won by checkmate"]

1. d4 {[%clk 0:03:01.9]} 1... Nf6 {[%clk 0:02:59.7]} 2. c4 {[%clk 0:03:03]} 2...
e6 {[%clk 0:03:00]} 3. Nf3 {[%clk 0:03:03.4]} 3... b6 {[%clk 0:03:01.1]} 4. g3
{[%clk 0:03:04.3]} 4... Ba6 {[%clk 0:03:01.3]} 5. Qc2 {[%clk 0:03:05.3]} 5...
Bb4+ {[%clk 0:02:48.7]} 6. Bd2 {[%clk 0:03:05.1]} 6... Be7 {[%clk 0:02:50]} 7.
e4 {[%clk 0:03:05.9]} 7... d5 {[%clk 0:02:51.5]} 8. cxd5 {[%clk 0:03:07.8]} 8...
Bxf1 {[%clk 0:02:53]} 9. Kxf1 {[%clk 0:03:08]} 9... exd5 {[%clk 0:02:54.9]} 10.
e5 {[%clk 0:03:09.6]} 10... Ne4 {[%clk 0:02:55.5]} 11. Nc3 {[%clk 0:03:11.2]}
11... Nxd2+ {[%clk 0:02:56.4]} 12. Qxd2 {[%clk 0:03:13.1]} 12... Nc6 {[%clk
0:02:57.7]} 13. h4 {[%clk 0:03:14.2]} 13... h5 {[%clk 0:02:57.7]} 14. Ng5 {[%clk
0:03:08.8]} 14... Qd7 {[%clk 0:02:53.5]} 15. Kg2 {[%clk 0:03:06.9]} 15... Nd8
{[%clk 0:02:52.6]} 16. Qf4 {[%clk 0:03:00.1]} 16... Bxg5 {[%clk 0:02:34]} 17.
Qxg5 {[%clk 0:02:54.6]} 17... Ne6 {[%clk 0:02:35.9]} 18. Qd2 {[%clk 0:02:47.9]}
18... O-O-O {[%clk 0:02:33.1]} 19. a4 {[%clk 0:02:48.1]} 19... Kb7 {[%clk
0:02:20.7]} 20. a5 {[%clk 0:02:48.8]} 20... c5 {[%clk 0:02:22]} 21. axb6 {[%clk
0:02:48]} 21... axb6 {[%clk 0:02:23.9]} 22. dxc5 {[%clk 0:02:48.1]} 22... bxc5
{[%clk 0:02:23.2]} 23. Ra5 {[%clk 0:02:43.2]} 23... Qc6 {[%clk 0:02:16.5]} 24.
Nb5 {[%clk 0:02:41.3]} 24... d4+ {[%clk 0:02:13.2]} 25. Kh2 {[%clk 0:02:42.2]}
25... Ra8 {[%clk 0:02:09]} 26. Rha1 {[%clk 0:02:32.7]} 26... Rxa5 {[%clk
0:01:51]} 27. Qxa5 {[%clk 0:02:25]} 27... Qb6 {[%clk 0:01:43.2]} 28. Nd6+ {[%clk
0:02:20.1]} 28... Kc7 {[%clk 0:01:43.9]} 29. Nb5+ {[%clk 0:02:10.5]} 29... Kc6
{[%clk 0:01:39.1]} 30. Qa4 {[%clk 0:02:10.8]} 30... Qxb5 {[%clk 0:01:37.9]} 31.
Qa7 {[%clk 0:02:07]} 31... Qb7 {[%clk 0:01:30.9]} 32. Qa4+ {[%clk 0:02:03.5]}
32... Kc7 {[%clk 0:01:30.5]} 33. Qc2 {[%clk 0:02:03]} 33... Rb8 {[%clk
0:01:28.5]} 34. Qf5 {[%clk 0:02:02.2]} 34... Kd8 {[%clk 0:01:23.5]} 35. Qxh5
{[%clk 0:02:02.1]} 35... Ke7 {[%clk 0:01:24.5]} 36. Ra3 {[%clk 0:01:57]} 36...
Qe4 {[%clk 0:01:08.6]} 37. f3 {[%clk 0:01:48.5]} 37... Qg6 {[%clk 0:01:04.8]}
38. Ra7+ {[%clk 0:01:44]} 38... Ke8 {[%clk 0:01:00.8]} 39. Qh8+ {[%clk
0:01:44.6]} 39... Nf8 {[%clk 0:01:01.6]} 40. g4 {[%clk 0:01:38.3]} 40... Rxb2+
{[%clk 0:00:56.8]} 41. Kg3 {[%clk 0:01:38.8]} 41... Rb8 {[%clk 0:00:56.2]} 42.
h5 {[%clk 0:01:32]} 42... Qg5 {[%clk 0:00:55.1]} 43. e6 {[%clk 0:01:28.4]} 43...
Qe5+ {[%clk 0:00:53.2]} 44. Kh3 {[%clk 0:01:29.7]} 44... Qxe6 {[%clk 0:00:50.1]}
45. Qxg7 {[%clk 0:01:30.8]} 45... Qd5 {[%clk 0:00:33.4]} 46. Qf6 {[%clk
0:01:22.9]} 46... Nd7 {[%clk 0:00:33.7]} 47. Qh8+ {[%clk 0:01:23.1]} 47... Ke7
{[%clk 0:00:33.8]} 48. Rxd7+ {[%clk 0:01:24.1]} 48... Kxd7 {[%clk 0:00:34.8]}
49. Qxb8 {[%clk 0:01:25.8]} 49... Qxf3+ {[%clk 0:00:35.4]} 50. Kh4 {[%clk
0:01:27.3]} 50... d3 {[%clk 0:00:35.2]} 51. Qa7+ {[%clk 0:01:19]} 51... Kd6
{[%clk 0:00:33.5]} 52. Qb8+ {[%clk 0:01:19.5]} 52... Ke6 {[%clk 0:00:26.9]} 53.
Qe8+ {[%clk 0:01:20.4]} 53... Kf6 {[%clk 0:00:21.1]} 54. Qh8+ {[%clk 0:01:06.9]}
54... Ke6 {[%clk 0:00:20.4]} 55. Qe8+ {[%clk 0:01:07.9]} 55... Kd6 {[%clk
0:00:21.2]} 56. Qb8+ {[%clk 0:01:05.3]} 56... Kd7 {[%clk 0:00:22.1]} 57. Qa7+
{[%clk 0:01:04.6]} 57... Ke6 {[%clk 0:00:21.5]} 58. Qb6+ {[%clk 0:00:59.3]}
58... Ke5 {[%clk 0:00:18.3]} 59. Qxc5+ {[%clk 0:01:00.1]} 59... Ke4 {[%clk
0:00:19.7]} 60. Qb4+ {[%clk 0:00:45.8]} 60... Ke3 {[%clk 0:00:19.4]} 61. Qc5+
{[%clk 0:00:38.7]} 61... Ke2 {[%clk 0:00:19.7]} 62. Qe5+ {[%clk 0:00:39.1]}
62... Kf1 {[%clk 0:00:19.8]} 63. Qa1+ {[%clk 0:00:38.1]} 63... Kg2 {[%clk
0:00:20.4]} 64. h6 {[%clk 0:00:33.1]} 64... d2 {[%clk 0:00:20.6]} 65. h7 {[%clk
0:00:32.4]} 65... d1=Q {[%clk 0:00:21.4]} 66. h8=Q {[%clk 0:00:33.8]} 66...
Qxg4# {[%clk 0:00:19]} 0-1

[Event "*** Titled Tuesday Blitz"]
[Site "Chess.com"]
[Date "2019.04.02"]
[Round "7"]
[White "Blitzstream"]
[Black "Aemulus20"]
[Result "1/2-1/2"]
[WhiteElo "2678"]
[BlackElo "2511"]
[TimeControl "180+2"]
[EndTime "15:36:18 PDT"]
[Termination "Game drawn by repetition"]

1. e4 {[%clk 0:03:01.9]} 1... c5 {[%clk 0:02:59.9]} 2. Nf3 {[%clk 0:03:02.7]}
2... d6 {[%clk 0:03:00.9]} 3. d4 {[%clk 0:03:03.3]} 3... cxd4 {[%clk 0:03:02.4]}
4. Nxd4 {[%clk 0:03:03.9]} 4... Nf6 {[%clk 0:03:03.8]} 5. Nc3 {[%clk 0:03:05]}
5... a6 {[%clk 0:03:05]} 6. Rg1 {[%clk 0:03:05.4]} 6... e5 {[%clk 0:02:55.8]} 7.
Nb3 {[%clk 0:03:06.1]} 7... h5 {[%clk 0:02:25.7]} 8. h3 {[%clk 0:03:05]} 8... h4
{[%clk 0:02:20.6]} 9. Bg5 {[%clk 0:03:05.4]} 9... Be7 {[%clk 0:02:20.3]} 10. Qd2
{[%clk 0:03:04.9]} 10... Be6 {[%clk 0:02:08.2]} 11. O-O-O {[%clk 0:03:03.2]}
11... Nbd7 {[%clk 0:02:08.6]} 12. Kb1 {[%clk 0:03:01.8]} 12... Rc8 {[%clk
0:01:57.6]} 13. f4 {[%clk 0:02:54.6]} 13... Rxc3 {[%clk 0:01:35.1]} 14. Qxc3
{[%clk 0:02:56.5]} 14... Nxe4 {[%clk 0:01:31.6]} 15. Qb4 {[%clk 0:02:43.6]}
15... Nxg5 {[%clk 0:01:23.9]} 16. fxg5 {[%clk 0:02:44.5]} 16... b5 {[%clk
0:01:06.1]} 17. g6 {[%clk 0:02:40]} 17... fxg6 {[%clk 0:00:59]} 18. Bd3 {[%clk
0:02:29.3]} 18... O-O {[%clk 0:00:34]} 19. Bxg6 {[%clk 0:02:27.1]} 19... Rf4
{[%clk 0:00:35]} 20. Qe1 {[%clk 0:02:06.6]} 20... Nf8 {[%clk 0:00:34.2]} 21. Bd3
{[%clk 0:02:03.4]} 21... Qc7 {[%clk 0:00:30.2]} 22. Rf1 {[%clk 0:02:02.4]} 22...
Rxf1 {[%clk 0:00:17.7]} 23. Qxf1 {[%clk 0:02:04.3]} 23... d5 {[%clk 0:00:17.5]}
24. Bf5 {[%clk 0:02:05.5]} 24... Bf7 {[%clk 0:00:17.7]} 25. Qe2 {[%clk
0:01:44.8]} 25... e4 {[%clk 0:00:15.3]} 26. Nd4 {[%clk 0:01:45.5]} 26... Bf6
{[%clk 0:00:15.2]} 27. c3 {[%clk 0:01:30.5]} 27... Qg3 {[%clk 0:00:14.3]} 28.
Bc8 {[%clk 0:01:23.5]} 28... b4 {[%clk 0:00:12.2]} 29. cxb4 {[%clk 0:01:18.4]}
29... Ng6 {[%clk 0:00:12.4]} 30. Be6 {[%clk 0:01:04.8]} 30... Nf4 {[%clk
0:00:10.5]} 31. Bxf7+ {[%clk 0:01:05.3]} 31... Kxf7 {[%clk 0:00:12.4]} 32. Nf5
{[%clk 0:00:34.1]} 32... Nxe2 {[%clk 0:00:09.5]} 33. Nxg3 {[%clk 0:00:31.8]}
33... hxg3 {[%clk 0:00:11]} 34. Rxd5 {[%clk 0:00:32.6]} 34... Nf4 {[%clk
0:00:11.9]} 35. Rd1 {[%clk 0:00:19.7]} 35... e3 {[%clk 0:00:08]} 36. Re1 {[%clk
0:00:14.1]} 36... e2 {[%clk 0:00:06.6]} 37. Kc2 {[%clk 0:00:13.7]} 37... Bxb2
{[%clk 0:00:06.2]} 38. Kd2 {[%clk 0:00:09.7]} 38... Bd4 {[%clk 0:00:07.2]} 39.
Rxe2 {[%clk 0:00:08.5]} 39... Nxe2 {[%clk 0:00:08.4]} 40. Kxe2 {[%clk
0:00:10.4]} 40... Bc3 {[%clk 0:00:09]} 41. a3 {[%clk 0:00:10.5]} 41... Bb2
{[%clk 0:00:10.1]} 42. a4 {[%clk 0:00:11.2]} 42... Bc3 {[%clk 0:00:10.3]} 43. b5
{[%clk 0:00:12.5]} 43... axb5 {[%clk 0:00:12.2]} 44. axb5 {[%clk 0:00:14.2]}
44... Bd4 {[%clk 0:00:13.3]} 45. Kf3 {[%clk 0:00:15.5]} 45... Bf2 {[%clk
0:00:13.5]} 46. Kg4 {[%clk 0:00:13.7]} 46... Kg6 {[%clk 0:00:13.9]} 47. Kf4
{[%clk 0:00:12.5]} 47... Kh5 {[%clk 0:00:12.5]} 48. Kf5 {[%clk 0:00:13.3]} 48...
Bb6 {[%clk 0:00:10.3]} 49. Kf4 {[%clk 0:00:13.9]} 49... Bc7+ {[%clk 0:00:11.5]}
50. Kf5 {[%clk 0:00:12.5]} 50... g5 {[%clk 0:00:11.9]} 51. Ke4 {[%clk
0:00:08.4]} 51... g4 {[%clk 0:00:09.7]} 52. h4 {[%clk 0:00:09.7]} 52... Kxh4
{[%clk 0:00:05.6]} 53. Kf5 {[%clk 0:00:11]} 53... Kh5 {[%clk 0:00:06.8]} 54. Kf6
{[%clk 0:00:12.3]} 54... Bb6 {[%clk 0:00:07.4]} 55. Kf5 {[%clk 0:00:13.6]} 55...
Bf2 {[%clk 0:00:08.3]} 56. Kf6 {[%clk 0:00:13.9]} 56... Bd4+ {[%clk 0:00:09.6]}
57. Kf5 {[%clk 0:00:15.3]} 57... Bb6 {[%clk 0:00:10.3]} 58. Kf6 {[%clk 0:00:16]}
58... Kh4 {[%clk 0:00:11.5]} 59. Kg6 {[%clk 0:00:15.2]} 59... Bd4 {[%clk
0:00:11.9]} 60. Kh6 {[%clk 0:00:15.5]} 60... Be3+ {[%clk 0:00:12.1]} 61. Kg6
{[%clk 0:00:16.6]} 61... Bb6 {[%clk 0:00:08.6]} 62. Kh6 {[%clk 0:00:17.8]} 62...
Bd8 {[%clk 0:00:09.8]} 63. Kg6 {[%clk 0:00:18.7]} 63... Bc7 {[%clk 0:00:11.3]}
64. Kh6 {[%clk 0:00:19.1]} 64... Bf4+ {[%clk 0:00:12.8]} 65. Kg6 {[%clk
0:00:20.1]} 65... Be5 {[%clk 0:00:13.9]} 66. b6 {[%clk 0:00:19.6]} 66... Bd4
{[%clk 0:00:14.6]} 67. b7 {[%clk 0:00:20.3]} 67... Ba7 {[%clk 0:00:15.6]} 68.
Kh6 {[%clk 0:00:21.3]} 68... Bb8 {[%clk 0:00:16.4]} 69. Kg6 {[%clk 0:00:22.5]}
69... Bf4 {[%clk 0:00:17.3]} 70. Kf5 {[%clk 0:00:22]} 70... Bb8 {[%clk
0:00:16.8]} 71. Kg6 {[%clk 0:00:23.2]} 71... Bc7 {[%clk 0:00:14.3]} 72. Kh6
{[%clk 0:00:24.1]} 72... Bb8 {[%clk 0:00:15.1]} 73. Kg6 {[%clk 0:00:25.4]} 73...
Bc7 {[%clk 0:00:16.4]} 74. Kh6 {[%clk 0:00:26.7]} 74... Bb8 {[%clk 0:00:17.6]}
75. Kg6 {[%clk 0:00:27.9]} 1/2-1/2